bitfinex/quotes_SOLUSD_20250717
["timestamp","ask_amount","ask_price","bid_price","bid_amount"]
[1752738448597,5.76003686,173.61,173.59,5.43406777]
[1752738449400,5.8197051,173.62,173.58,5.43406777]
[1752738449582,5.43406777,173.61,173.56,5.43406777]
[1752738450399,25.65303562,173.62,173.57,5.43406777]
[1752738451999,25.65303562,173.62,173.53,34.17]
[1752738452404,20.21896785,173.62,173.57,5.43406777]
[1752738452616,25.65303562,173.62,173.57,5.43406777]
[1752738452815,25.65303562,173.62,173.53,34.17]
[1752738452996,20.21896785,173.62,173.59,5.43406777]
[1752738453319,5.43406777,173.61,173.56,5.43406777]
[1752738453517,5.43406777,173.6,173.55,5.43406777]
[1752738453690,5.43406777,173.61,173.56,5.43406777]
[1752738454614,5.43406777,173.61,173.53,0.03]
[1752738454790,153.53406777,173.61,173.57,5.43406777]
[1752738454982,5.76036866,173.6,173.57,5.43406777]
[1752738455190,5.7601464,173.61,173.59,5.43406777]
[1752738455401,5.7601464,173.61,173.53,5.79267062]
[1752738455606,5.7601464,173.61,173.58,5.43406777]
[1752738455795,5.7601464,173.61,173.53,5.79267062]
[1752738456013,5.7601464,173.61,173.58,5.43406777]
[1752738456209,5.7601464,173.61,173.57,5.43406777]
[1752738457332,5.7601464,173.61,173.58,5.43406777]
[1752738457694,5.7601464,173.61,173.57,5.43406777]
[1752738458125,5.7601464,173.61,173.54,5.76227035]
[1752738458328,5.7601464,173.61,173.57,5.43406777]
[1752738459923,0.06,173.62,173.6,5.43406777]
[1752738460122,0.06,173.62,173.61,5.43406777]
[1752738460993,0.06,173.62,173.6,5.43406777]
[1752738461918,0.06,173.62,173.55,26.0]
[1752738462118,0.06,173.62,173.58,5.43406777]
[1752738462430,0.06,173.62,173.59,5.43406777]
[1752738463127,5.8197051,173.62,173.59,5.43406777]
[1752738464303,5.8197051,173.62,173.58,5.43406777]
[1752738465113,0.06,173.62,173.59,5.43406777]
[1752738466826,0.06,173.62,173.6,5.43406777]
[1752738467231,0.06,173.62,173.61,5.43406777]
[1752738470529,0.06,173.62,173.58,5.76100981]
[1752738471039,0.06,173.62,173.61,5.43406777]
[1752738471237,0.06,173.62,173.6,5.43406777]
[1752738472117,0.06,173.62,173.61,5.43406777]
[1752738475456,0.06,173.62,173.6,5.43406777]
[1752738476047,0.06,173.62,173.61,5.43406777]
[1752738477121,0.06,173.62,173.6,5.43406777]
[1752738478137,0.06,173.62,173.61,5.43406777]
[1752738479141,0.06,173.62,173.59,39.33406777]
[1752738479727,0.06,173.62,173.6,5.43406777]
[1752738481930,0.06,173.62,173.61,5.43406777]
[1752738482425,0.06,173.62,173.61,22.21875174]
[1752738483342,0.06,173.62,173.61,16.78468397]
[1752738483530,0.06,173.62,173.61,22.21875174]
[1752738483729,0.06,173.62,173.61,61.8387886]
[1752738488950,0.06,173.62,173.61,77.27186545]
[1752738489127,0.06,173.69,173.64,26.0]
[1752738489328,0.06,173.69,173.66,5.43406777]
[1752738489547,0.06,173.69,173.64,26.0]
[1752738489734,0.06,173.69,173.66,39.25406777]
[1752738490041,5.81742343,173.69,173.65,5.43406777]
[1752738490244,5.43406777,173.68,173.66,33.8]
[1752738490435,11.2514912,173.69,173.64,39.23406777]
[1752738490844,5.43406777,173.68,173.63,5.43406777]
[1752738491043,5.43406777,173.68,173.64,33.8]
[1752738491348,5.75771533,173.68,173.64,39.23406777]
[1752738492234,5.75771533,173.68,173.61,31.76003686]
[1752738492235,5.43406777,173.66,173.61,26.0]
[1752738492426,5.43406777,173.66,173.62,33.78]
[1752738493052,25.58607144,173.68,173.63,5.43406777]
[1752738493247,5.43406777,173.67,173.62,39.21406777]
[1752738493444,5.43406777,173.67,173.62,33.78]
[1752738493644,5.43406777,173.66,173.62,33.78]
[1752738493952,5.43406777,173.67,173.62,39.21406777]
[1752738494940,5.43406777,173.66,173.62,33.78]
[1752738495552,5.75871004,173.65,173.62,33.78]
[1752738495727,5.75871004,173.65,173.61,5.43406777]
[1752738495930,5.75871004,173.65,173.62,5.43406777]
[1752738497439,5.75837844,173.66,173.62,5.43406777]
[1752738497653,5.43406777,173.65,173.58,26.0]
[1752738497846,5.43406777,173.64,173.59,33.74]
[1752738498150,5.43406777,173.64,173.59,39.17406777]
[1752738499458,5.75937338,173.63,173.59,39.17406777]
[1752738501247,5.75937338,173.63,173.6,5.43406777]
[1752738501435,5.75937338,173.63,173.59,39.17406777]
[1752738501752,5.43406777,173.62,173.59,33.74]
[1752738502050,5.43406777,173.62,173.57,39.13406777]
[1752738503257,5.43406777,173.62,173.55,5.43406777]
[1752738503258,5.43406777,173.6,173.55,5.43406777]
[1752738503442,5.76103237,173.58,173.55,33.68]
[1752738504177,5.76036866,173.6,173.55,39.11406777]
[1752738504476,5.76036866,173.6,173.57,5.43406777]
[1752738505341,11.19410463,173.61,173.56,39.11406777]
[1752738505842,153.85981657,173.62,173.59,5.43406777]
[1752738506160,148.1,173.62,173.6,5.43406777]
[1752738506760,153.85971975,173.62,173.6,5.43406777]
[1752738506934,153.85971975,173.62,173.59,26.0]
[1752738507263,153.85971975,173.62,173.59,5.43406777]
[1752738507430,153.85971975,173.62,173.56,65.44165558]
[1752738507633,153.85971975,173.62,173.59,5.43406777]
[1752738508464,153.85971975,173.62,173.6,5.43406777]
[1752738508763,153.85971975,173.62,173.59,5.43406777]
[1752738510184,153.85971975,173.62,173.56,31.7616009]
[1752738510559,153.85971975,173.62,173.58,5.43406777]
[1752738511259,153.85971975,173.62,173.57,33.62]
[1752738511460,153.85971975,173.62,173.6,5.43406777]
[1752738511645,153.85971975,173.62,173.59,5.43406777]
[1752738513448,148.1,173.62,173.6,5.43406777]
[1752738514147,148.1,173.62,173.59,0.03]
[1752738514487,0.06,173.65,173.6,26.0]
[1752738514682,0.06,173.65,173.61,39.01406777]
[1752738515177,0.06,173.65,173.61,33.58]
[1752738515343,0.06,173.65,173.62,5.43406777]
[1752738515544,0.06,173.65,173.61,33.58]
[1752738515749,0.06,173.65,173.61,39.01406777]
[1752738516251,5.43406777,173.64,173.61,33.58]
[1752738516585,5.43406777,173.63,173.59,0.03]
[1752738516961,0.06,173.65,173.59,0.03]
[1752738517161,5.43406777,173.63,173.59,0.03]
[1752738517465,5.43406777,173.64,173.59,0.03]
[1752738518274,5.75937338,173.63,173.59,0.03]
[1752738518778,5.75937338,173.63,173.59,0.01]
[1752738518955,5.75937338,173.63,173.59,5.44406777]
[1752738519785,5.75937338,173.63,173.59,0.01]
[1752738519989,5.43406777,173.61,173.59,0.01]
[1752738520847,5.43406777,173.62,173.59,0.01]
[1752738521463,20.15780683,173.63,173.59,5.44406777]
[1752738521672,25.5918746,173.63,173.59,0.01]
[1752738521872,5.75937338,173.63,173.59,5.44406777]
[1752738522271,11.19344115,173.63,173.59,0.01]
[1752738522772,5.75937338,173.63,173.61,5.43406777]
[1752738523077,5.75937338,173.63,173.6,5.43406777]
[1752738523570,5.75937338,173.63,173.59,0.01]
[1752738523783,5.75937338,173.63,173.6,5.43406777]
[1752738524169,5.75904169,173.64,173.6,5.43406777]
[1752738525085,5.75904169,173.64,173.61,5.43406777]
[1752738525467,5.81873009,173.65,173.62,5.43406777]
[1752738525676,0.06,173.65,173.62,5.43406777]
[1752738525875,5.81875566,173.65,173.61,33.48]
[1752738526066,5.81875566,173.65,173.61,38.91406777]
[1752738527467,11.25282343,173.65,173.61,33.48]
[1752738527964,5.81875566,173.65,173.61,38.91406777]
[1752738528871,11.25282343,173.65,173.61,33.48]
[1752738530696,5.81875566,173.65,173.61,38.91406777]
[1752738531381,5.49406777,173.65,173.61,38.91406777]
[1752738531889,5.49406777,173.65,173.61,33.48]
[1752738532379,5.75904169,173.64,173.61,33.48]
[1752738532571,5.75904169,173.64,173.59,39.19061942]
[1752738533068,5.75904169,173.64,173.6,5.43406777]
[1752738533678,0.06,173.65,173.6,5.43406777]
[1752738533885,5.49406777,173.65,173.6,5.43406777]
[1752738534771,0.06,173.65,173.61,5.43406777]
[1752738535799,5.81871004,173.65,173.61,5.43406777]
[1752738535987,5.81871004,173.65,173.59,39.19061942]
[1752738536297,5.81871004,173.65,173.61,5.43406777]
[1752738536701,11.25277781,173.65,173.6,5.43406777]
[1752738538191,5.49406777,173.65,173.6,5.43406777]
[1752738539384,5.75904169,173.64,173.6,5.43406777]
[1752738539796,11.19310946,173.64,173.59,38.86406777]
[1752738540399,5.75904169,173.64,173.59,33.43]
[1752738540600,5.75904169,173.64,173.59,38.86406777]
[1752738540908,5.75904169,173.64,173.6,5.43406777]
[1752738541727,5.75904169,173.64,173.59,38.86406777]
[1752738541903,5.49406777,173.65,173.63,5.43406777]
[1752738541904,0.06,173.65,173.63,5.43406777]
[1752738542198,0.06,173.65,173.59,39.19067402]
[1752738542199,0.06,173.65,173.64,5.43406777]
[1752738542998,0.06,173.65,173.62,33.34]
[1752738543383,0.06,173.65,173.62,38.77406777]
[1752738543698,0.06,173.65,173.64,48.21875174]
[1752738544989,0.06,173.65,173.64,53.97779343]
[1752738545372,1e-08,173.65,173.64,66.84875962]
[1752738545585,0.06,173.69,173.68,26.0]
[1752738545890,0.06,173.69,173.68,64.73406777]
[1752738547105,0.06,173.69,173.68,70.4917831]
[1752738549091,0.06,173.69,173.68,64.73406777]
[1752738549403,0.06,173.69,173.68,59.3]
[1752738549610,0.06,173.69,173.68,30.0]
[1752738552311,5.81738384,173.69,173.68,30.0]
[1752738553108,11.25145161,173.69,173.68,30.0]
[1752738553509,11.25145161,173.69,173.64,33.26]
[1752738553510,27.28431122,173.69,173.61,5.43406777]
[1752738553711,5.43406777,173.66,173.62,30.0]
[1752738554309,5.75871004,173.65,173.61,38.65406777]
[1752738554892,5.75871004,173.65,173.61,33.22]
[1752738555095,5.75871004,173.65,173.61,38.65406777]
[1752738555306,5.75871004,173.65,173.62,5.43406777]
[1752738555508,5.75837844,173.66,173.62,5.43406777]
[1752738556217,5.75837844,173.66,173.61,33.22]
[1752738556514,5.75837844,173.66,173.62,5.43406777]
[1752738556911,11.19211464,173.67,173.61,33.22]
[1752738557412,11.19211464,173.67,173.62,5.43406777]
[1752738558413,5.75871004,173.65,173.61,38.65406777]
[1752738559293,5.75849948,173.66,173.62,5.43406777]
[1752738560402,11.19256725,173.66,173.61,38.65406777]
[1752738560605,11.19256725,173.66,173.61,33.22]
[1752738560920,5.43406777,173.65,173.61,33.22]
[1752738561121,5.43406777,173.64,173.59,0.01]
[1752738561296,5.43406777,173.63,173.59,0.01]
[1752738561609,5.43406777,173.62,173.59,0.01]
[1752738563087,5.76003686,173.61,173.59,0.01]
[1752738564299,5.43406777,173.62,173.6,5.43406777]
[1752738564300,5.75979528,173.62,173.6,5.43406777]
[1752738564701,5.75979528,173.62,173.59,5.44406777]
[1752738564904,5.75979528,173.62,173.59,0.01]
[1752738565442,5.75979528,173.62,173.6,5.43406777]
[1752738565941,5.75979528,173.62,173.59,5.44406777]
[1752738566112,5.75979528,173.62,173.59,0.01]
[1752738566421,5.75979528,173.62,173.59,5.44406777]
[1752738567898,5.75979528,173.62,173.6,5.43406777]
[1752738568325,11.19386305,173.62,173.59,0.01]
[1752738568513,5.75979528,173.62,173.59,0.01]
[1752738570030,5.75979528,173.62,173.6,5.43406777]
[1752738570226,5.75979528,173.62,173.59,5.44406777]
[1752738571910,148.1,173.63,173.61,5.43406777]
[1752738572121,148.1,173.63,173.59,0.01]
[1752738572122,148.1,173.63,173.62,5.43406777]
[1752738572407,5.75813363,173.67,173.62,5.43406777]
[1752738572609,5.75813363,173.67,173.64,5.43406777]
[1752738572810,5.75813363,173.67,173.6,33.08]
[1752738573027,5.75813363,173.67,173.64,5.43406777]
[1752738573413,155.23346777,173.69,173.66,5.43406777]
[1752738573414,0.06,173.69,173.66,5.43406777]
[1752738573747,0.06,173.69,173.67,5.43406777]
[1752738573913,5.49406777,173.69,173.64,38.49406777]
[1752738574432,5.43406777,173.68,173.64,33.06]
[1752738574610,5.43406777,173.66,173.61,38.47406777]
[1752738574932,5.43406777,173.63,173.59,33.05]
[1752738575234,5.43406777,173.62,173.6,30.0]
[1752738575811,20.15548516,173.65,173.6,30.0]
[1752738576132,5.43406777,173.63,173.6,30.0]
[1752738576712,5.43406777,173.63,173.59,0.01]
[1752738577319,53.19548516,173.65,173.59,0.01]
[1752738577533,11.19363312,173.63,173.59,0.01]
[1752738581546,5.43406777,173.64,173.59,5.44406777]
[1752738581724,5.43406777,173.63,173.59,0.01]
[1752738582228,38.79871004,173.65,173.59,0.01]
[1752738582410,5.43406777,173.63,173.59,0.01]
[1752738582610,5.43406777,173.64,173.59,5.44406777]
[1752738582837,0.06,173.65,173.63,5.43406777]
[1752738583310,0.06,173.65,173.6,32.96]
[1752738583515,5.49406777,173.65,173.59,0.01]
[1752738583725,0.06,173.65,173.59,5.44406777]
[1752738583932,5.49406777,173.65,173.6,5.43406777]
[1752738584746,0.06,173.65,173.62,5.43406777]
[1752738584919,0.06,173.65,173.64,5.43406777]
[1752738585544,0.06,173.65,173.63,5.43406777]
[1752738586054,0.06,173.65,173.64,5.43406777]
[1752738586956,0.06,173.65,173.64,11.19310946]
[1752738590252,0.06,173.65,173.64,5.43406777]
[1752738590431,0.06,173.65,173.63,5.75926049]
[1752738590643,0.06,173.65,173.64,26.0]
[1752738590946,0.06,173.65,173.62,32.94]
[1752738591143,0.06,173.65,173.64,5.43406777]
[1752738591528,0.06,173.65,173.63,5.43406777]
[1752738592343,0.76,173.65,173.63,5.43406777]
[1752738593037,0.7,173.64,173.63,5.43406777]
[1752738593354,0.7,173.64,173.62,32.94]
[1752738593550,0.7,173.64,173.62,5.43406777]
[1752738593852,0.7,173.63,173.62,5.43406777]
[1752738594045,0.7,173.64,173.61,26.0]
[1752738594265,0.7,173.63,173.62,5.43406777]
[1752738594555,0.7,173.64,173.62,5.43406777]
[1752738594948,0.7,173.64,173.63,5.43406777]
[1752738595851,0.06,173.65,173.63,5.43406777]
[1752738596033,0.76,173.65,173.63,5.43406777]
[1752738596430,0.76,173.65,173.62,5.43406777]
[1752738597452,6.51880174,173.65,173.62,5.43406777]
[1752738597639,5.81880174,173.65,173.62,5.43406777]
[1752738597837,5.81880174,173.65,173.61,31.43406777]
[1752738597838,0.7,173.64,173.61,31.43406777]
[1752738598262,0.7,173.64,173.61,5.43406777]
[1752738599147,0.7,173.63,173.59,39.28061097]
[1752738599352,0.7,173.62,173.61,5.43406777]
[1752738599562,0.7,173.63,173.61,5.43406777]
[1752738599770,6.51882772,173.65,173.62,5.43406777]
[1752738600277,0.7,173.64,173.62,5.43406777]
[1752738600659,6.45916485,173.64,173.61,5.43406777]
[1752738600849,0.7,173.63,173.61,5.43406777]
[1752738601563,0.66,173.62,173.61,5.43406777]
[1752738601808,0.66,173.63,173.61,5.43406777]
[1752738602339,0.66,173.63,173.62,5.43406777]
[1752738603152,6.41938459,173.63,173.59,32.89]
[1752738603464,0.66,173.62,173.61,5.43406777]
[1752738604661,0.66,173.62,173.59,0.01]
[1752738604662,6.09406777,173.62,173.59,0.01]
[1752738604848,5.76003686,173.61,173.59,0.01]
[1752738605040,6.42003686,173.61,173.59,0.01]
[1752738605241,0.66,173.6,173.59,0.01]
[1752738605436,5.75983545,173.62,173.59,5.44406777]
[1752738605647,0.66,173.61,173.59,0.01]
[1752738606363,5.75904169,173.64,173.6,5.43406777]
[1752738606670,0.66,173.63,173.59,0.01]
[1752738606875,22.92978397,173.59,173.54,0.03]
[1752738607075,5.43406777,173.55,173.54,0.03]
[1752738607476,6.09406777,173.55,173.54,0.03]
[1752738607672,0.66,173.55,173.54,0.03]
[1752738608174,6.09406777,173.55,173.54,0.03]
[1752738609068,0.66,173.55,173.54,0.03]
[1752738609775,148.1,173.58,173.54,5.46406777]
[1752738609776,0.66,173.57,173.54,5.46406777]
[1752738609953,148.1,173.58,173.54,5.46406777]
[1752738610159,0.66,173.56,173.55,5.43406777]
[1752738610360,0.66,173.56,173.54,5.46406777]
[1752738611070,0.66,173.55,173.54,0.03]
[1752738611285,0.66,173.55,173.54,5.46406777]
[1752738611689,0.66,173.57,173.54,5.46406777]
[1752738611996,159.29515177,173.58,173.56,5.43406777]
[1752738611997,148.76,173.58,173.56,5.43406777]
[1752738612291,0.66,173.59,173.57,5.43406777]
[1752738613059,0.66,173.59,173.55,6.40202261]
[1752738613259,0.66,173.58,173.57,5.43406777]
[1752738613680,0.66,173.58,173.56,5.43406777]
[1752738613881,0.66,173.57,173.56,5.43406777]
[1752738614591,0.66,173.59,173.56,5.43406777]
[1752738614764,0.66,173.59,173.54,6.43229488]
[1752738614960,0.66,173.59,173.54,0.03]
[1752738614961,11.85484381,173.59,173.54,0.03]
[1752738615166,0.66,173.58,173.55,5.43406777]
[1752738615363,5.76077604,173.59,173.55,5.43406777]
[1752738615364,0.66,173.57,173.55,5.43406777]
[1752738615766,0.66,173.57,173.54,5.46406777]
[1752738616368,11.19484381,173.59,173.54,5.46406777]
[1752738616689,0.66,173.56,173.54,5.46406777]
[1752738617558,0.66,173.56,173.55,5.43406777]
[1752738618969,0.66,173.56,173.54,0.03]
[1752738619163,0.66,173.56,173.55,5.43406777]
[1752738619963,0.66,173.56,173.54,0.03]
[1752738620189,0.66,173.56,173.55,5.43406777]
[1752738621086,11.85587217,173.56,173.54,0.03]
[1752738621476,6.09406777,173.55,173.54,0.03]
[1752738622064,0.66,173.55,173.54,0.03]
[1752738622668,6.42202823,173.55,173.54,0.03]
[1752738623802,11.856096,173.55,173.54,0.03]
[1752738625301,6.42202823,173.55,173.54,0.03]
[1752738625492,28.64077997,173.55,173.54,0.03]
[1752738626485,6.42202823,173.55,173.54,0.03]
[1752738628371,11.856096,173.55,173.54,0.03]
[1752738628782,6.42202823,173.55,173.54,0.03]
[1752738628986,11.856096,173.55,173.54,0.03]
[1752738629813,6.42202823,173.55,173.54,0.03]
[1752738630804,0.66,173.58,173.54,6.10406777]
[1752738631101,0.66,173.57,173.56,5.43406777]
[1752738631910,0.66,173.57,173.54,0.03]
[1752738632117,0.66,173.57,173.54,0.67]
[1752738632305,0.66,173.57,173.56,5.43406777]
[1752738633603,148.87,173.59,173.56,5.43406777]
[1752738633775,0.06,173.59,173.58,5.43406777]
[1752738634907,0.77,173.59,173.57,5.43406777]
[1752738635208,0.06,173.59,173.57,5.43406777]
[1752738635418,0.06,173.59,173.58,5.43406777]
[1752738635922,0.06,173.59,173.57,0.64]
[1752738636078,0.06,173.59,173.58,5.43406777]
[1752738638281,0.06,173.59,173.58,6.07406777]
[1752738638681,0.06,173.59,173.58,5.43406777]
[1752738639596,0.06,173.59,173.57,0.64]
[1752738639802,0.06,173.59,173.56,6.40161364]
[1752738640005,0.77,173.59,173.57,5.43406777]
[1752738640210,0.06,173.59,173.58,5.43406777]
[1752738640422,0.06,173.59,173.58,6.07406777]
[1752738640715,0.06,173.59,173.58,5.43406777]
[1752738643384,0.06,173.59,173.58,6.07406777]
[1752738643584,0.06,173.59,173.58,5.43406777]
[1752738647490,0.77,173.59,173.58,5.43406777]
[1752738647883,0.77,173.59,173.57,5.43406777]
[1752738648100,0.71,173.58,173.56,5.43406777]
[1752738648609,0.06,173.59,173.57,5.43406777]
[1752738648811,0.77,173.59,173.57,5.43406777]
[1752738649010,0.77,173.59,173.55,26.0]
[1752738649187,6.20406777,173.59,173.55,31.43406777]
[1752738649387,0.71,173.58,173.55,31.43406777]
[1752738649705,6.14406777,173.58,173.55,26.0]
[1752738649909,0.71,173.57,173.54,0.03]
[1752738650406,5.43406777,173.58,173.54,5.46406777]
[1752738650407,0.71,173.56,173.54,5.46406777]
[1752738653292,0.71,173.56,173.54,0.03]
[1752738653293,11.90581735,173.56,173.54,0.03]
[1752738653492,5.43406777,173.55,173.54,0.03]
[1752738653695,6.14406777,173.55,173.54,0.03]
[1752738655188,11.906096,173.55,173.54,0.03]
[1752738658918,6.47202823,173.55,173.54,0.03]
[1752738659122,11.906096,173.55,173.54,0.03]
[1752738660514,6.47136429,173.57,173.54,5.46406777]
[1752738660916,0.71,173.56,173.54,0.03]
[1752738661916,5.76136429,173.57,173.54,5.46406777]
[1752738662109,6.42136429,173.57,173.54,5.46406777]
[1752738662315,0.66,173.56,173.54,0.03]
[1752738662822,6.42170773,173.56,173.54,0.03]
[1752738663121,0.66,173.57,173.55,5.43406777]
[1752738663303,153.92074848,173.59,173.56,6.07406777]
[1752738663510,148.16,173.59,173.58,5.43406777]
[1752738663704,148.16,173.59,173.55,0.64]
[1752738663912,148.16,173.59,173.58,5.43406777]
[1752738664413,148.82,173.59,173.57,5.43406777]
[1752738665206,0.66,173.58,173.54,0.03]
[1752738665425,148.16,173.59,173.57,5.43406777]
[1752738666517,148.82,173.59,173.57,5.43406777]
[1752738666833,148.16,173.59,173.58,5.43406777]
[1752738668224,148.82,173.59,173.57,5.43406777]
[1752738668399,148.82,173.59,173.55,6.40192784]
[1752738668604,148.82,173.59,173.57,5.43406777]
[1752738669229,148.82,173.59,173.55,6.40192784]
[1752738669529,148.82,173.59,173.57,5.43406777]
[1752738670226,148.82,173.59,173.55,6.40192784]
[1752738670432,148.82,173.59,173.58,5.43406777]
[1752738670812,148.82,173.59,173.54,5.79225886]
[1752738671012,0.66,173.58,173.54,5.79225886]
[1752738671325,0.66,173.58,173.57,5.43406777]
[1752738671718,0.66,173.58,173.56,5.43406777]
[1752738671926,0.66,173.57,173.56,5.43406777]
[1752738672229,148.82,173.59,173.56,5.43406777]
[1752738672424,148.82,173.59,173.57,5.43406777]
[1752738672728,0.66,173.58,173.57,5.43406777]
[1752738672933,0.66,173.58,173.56,5.43406777]
[1752738673231,0.66,173.58,173.57,5.43406777]
[1752738673922,38.33406777,173.58,173.54,0.03]
[1752738674117,44.09520896,173.58,173.54,0.03]
[1752738674423,0.66,173.57,173.54,0.03]
[1752738675133,0.66,173.57,173.54,5.46406777]
[1752738675326,0.66,173.57,173.55,5.43406777]
[1752738675526,6.42149767,173.57,173.54,0.03]
[1752738675722,6.42149767,173.57,173.54,5.46406777]
[1752738675923,0.66,173.56,173.54,5.46406777]
[1752738676526,0.66,173.55,173.54,5.46406777]
[1752738677433,5.76138391,173.57,173.54,5.46406777]
[1752738677625,0.66,173.56,173.54,5.46406777]
[1752738679927,0.66,173.56,173.54,0.03]
[1752738680242,0.66,173.56,173.54,5.46406777]
[1752738682140,44.03517777,173.58,173.54,6.10406777]
[1752738682442,0.06,173.59,173.57,5.43406777]
[1752738682640,0.06,173.59,173.58,6.07406777]
[1752738683325,0.06,173.59,173.58,11.83510014]
[1752738684139,0.06,173.59,173.58,11.19510014]
[1752738684852,0.06,173.59,173.58,11.83510014]
[1752738688025,0.06,173.59,173.58,5.43406777]
[1752738689228,0.72,173.59,173.57,5.43406777]
[1752738689433,0.66,173.58,173.56,5.43406777]
[1752738693353,0.66,173.58,173.54,6.43224059]
[1752738693354,0.66,173.57,173.55,5.43406777]
[1752738693746,5.76112382,173.58,173.55,5.43406777]
[1752738693949,0.66,173.56,173.55,5.43406777]
[1752738694456,0.66,173.56,173.54,0.03]
[1752738695632,6.42181856,173.56,173.54,0.03]
[1752738695835,11.85588633,173.56,173.54,0.03]
[1752738696055,0.66,173.55,173.54,0.03]
[1752738697247,0.72,173.59,173.54,5.46406777]
[1752738697446,0.66,173.58,173.55,26.0]
[1752738697644,0.66,173.57,173.55,31.43406777]
[1752738698338,0.66,173.57,173.55,5.43406777]
[1752738699058,0.66,173.56,173.54,0.03]
[1752738699442,0.66,173.55,173.54,0.03]
[1752738700658,6.42202823,173.55,173.54,0.03]
[1752738702842,159.956096,173.55,173.54,0.03]
[1752738704067,191.976096,173.55,173.54,0.03]
[1752738704474,208.76077997,173.55,173.54,0.03]
[1752738705153,68.51227997,173.55,173.54,0.03]
[1752738709142,36.49227997,173.55,173.54,0.03]
[1752738709359,68.47227997,173.55,173.54,0.03]
[1752738710165,31.0582122,173.55,173.54,0.03]
[1752738710383,68.47227997,173.55,173.54,0.03]
[1752738711271,36.49227997,173.55,173.54,0.03]
[1752738711438,68.47227997,173.55,173.54,0.03]
[1752738711884,22.21875174,173.54,173.53,0.03]
[1752738712256,28.641112,173.54,173.53,0.03]
[1752738713256,28.641112,173.54,173.52,0.03]
[1752738713565,16.78468397,173.52,173.49,0.63856172]
[1752738713869,5.43406777,173.5,173.49,0.63856172]
[1752738714257,11.85775653,173.5,173.49,0.63856172]
[1752738714873,28.6424405,173.5,173.49,0.63856172]
[1752738715243,16.78468397,173.49,173.47,0.03]
[1752738715577,54.15875174,173.48,173.47,0.03]
[1752738715784,54.81875174,173.48,173.47,0.03]
[1752738715942,54.15875174,173.48,173.47,0.03]
[1752738716142,54.81875174,173.48,173.47,0.03]
[1752738716364,60.58310497,173.48,173.47,0.03]
[1752738717557,28.64310497,173.48,173.47,0.03]
[1752738717757,60.56310497,173.48,173.47,0.03]
[1752738718975,5.76435323,173.48,173.47,0.03]
[1752738719351,6.42435323,173.48,173.47,0.03]
[1752738723693,5.76435323,173.48,173.47,0.03]
[1752738723878,6.47435323,173.48,173.47,0.03]
[1752738724606,0.71,173.5,173.47,0.03]
[1752738724884,32.59,173.5,173.47,0.03]
[1752738725088,32.59,173.5,173.47,5.46406777]
[1752738725294,32.59,173.5,173.47,0.03]
[1752738725462,31.88,173.5,173.47,0.03]
[1752738725666,0.71,173.49,173.47,0.03]
[1752738726582,6.47432947,173.49,173.47,0.03]
[1752738726987,5.76432947,173.49,173.47,0.03]
[1752738727165,0.71,173.48,173.47,0.03]
[1752738727558,5.76432947,173.49,173.47,0.03]
[1752738728182,6.47432947,173.49,173.47,0.03]
[1752738730194,0.71,173.48,173.47,0.03]
[1752738731371,6.47435323,173.48,173.47,0.03]
[1752738732075,43.748421,173.48,173.47,0.03]
[1752738732692,60.53310497,173.48,173.47,0.03]
[1752738734083,28.69310497,173.48,173.47,0.03]
[1752738734292,60.51310497,173.48,173.47,0.03]
[1752738735873,11.908421,173.48,173.47,0.03]
[1752738736086,60.51310497,173.48,173.47,0.03]
[1752738742271,62.04440497,173.48,173.47,0.03]
[1752738742473,62.04440497,173.48,173.47,1e-08]
[1752738743606,87.98440497,173.48,173.47,1e-08]
[1752738743996,82.5503372,173.48,173.47,1e-08]